bitfinex-derivatives/quotes_SOLF0:USTF0_20250509
["timestamp","ask_amount","ask_price","bid_price","bid_amount"]
[1746802374336,52.02,169.3,169.19,15.60273552]
[1746802374941,357.0,169.33,169.19,15.60273552]
[1746802375546,52.02,169.37,169.23,15.60273552]
[1746802375731,52.02,169.37,169.29,5.9064]
[1746802375931,52.02,169.37,169.24,55.7784]
[1746802376243,52.02,169.37,169.27,5.9071]
[1746802376437,52.02,169.37,169.24,55.7784]
[1746802376643,52.02,169.37,169.24,53.8841]
[1746802376848,5.9069,169.29,169.24,53.8841]
[1746802377041,52.02,169.37,169.2,53.7143]
[1746802377240,52.02,169.37,169.2,55.6658]
[1746802377848,5.9066,169.3,169.26,5.9075]
[1746802378039,5.9066,169.3,169.2,55.6658]
[1746802378238,51.78,169.36,169.2,55.6658]
[1746802378434,5.906,169.31,169.2,55.6658]
[1746802378641,51.78,169.36,169.2,55.6658]
[1746802378944,5.9064,169.3,169.26,5.9074]
[1746802379239,51.78,169.36,169.2,55.6658]
[1746802379635,5.9057,169.32,169.28,5.907]
[1746802380044,5.906,169.31,169.27,5.9072]
[1746802380236,52.02,169.37,169.27,5.9072]
[1746802380434,52.02,169.37,169.2,55.6658]
[1746802380639,372.60273552,169.36,169.23,5.9086]
[1746802380940,372.60273552,169.36,169.2,3.8458]
[1746802381245,357.0,169.35,169.24,5.9084]
[1746802381444,357.0,169.35,169.2,3.8458]
[1746802381645,5.9085,169.24,169.17,562.74]
[1746802381947,52.0,169.3,169.17,562.74]
[1746802382143,52.0,169.29,169.17,562.74]
[1746802382342,52.0,169.29,169.17,52.0]
[1746802382946,5.9089,169.23,169.2,5.9098]
[1746802383151,52.0,169.29,169.2,5.9098]
[1746802383445,52.0,169.29,169.19,5.9101]
[1746802383748,52.0,169.29,169.15,1.993]
[1746802383938,5.9097,169.21,169.15,1.993]
[1746802384143,52.0,169.29,169.14,1.8822]
[1746802384341,357.0,169.28,169.14,1.8822]
[1746802384541,372.60273552,169.27,169.12,52.0]
[1746802384746,357.0,169.26,169.1,1.9452]
[1746802385047,357.0,169.25,169.09,51.58]
[1746802385245,51.56,169.24,169.09,51.58]
[1746802385651,51.56,169.24,169.09,67.18273552]
[1746802385838,357.0,169.25,169.09,67.18273552]
[1746802386044,409.0,169.25,169.13,15.60273552]
[1746802386252,5.9085,169.24,169.13,15.60273552]
[1746802386447,409.0,169.25,169.13,15.60273552]
[1746802386753,5.909,169.23,169.13,15.60273552]
[1746802387046,409.0,169.25,169.13,15.60273552]
[1746802387243,510.58,169.28,169.22,5.9091]
[1746802387447,510.58,169.28,169.14,3.8425]
[1746802387647,510.58,169.28,169.14,55.8425]
[1746802387847,510.58,169.28,169.15,1.8826]
[1746802388047,5.9087,169.24,169.2,5.9097]
[1746802388250,510.58,169.28,169.15,1.8826]
[1746802388545,5.9084,169.24,169.2,5.9097]
[1746802388750,510.58,169.28,169.15,1.8826]
[1746802389152,5.9087,169.24,169.2,5.9098]
[1746802389451,510.58,169.28,169.15,1.8826]
[1746802389947,510.58,169.28,169.19,5.9098]
[1746802390152,510.58,169.28,169.15,1.8826]
[1746802390551,5.9087,169.24,169.15,1.8826]
[1746802390849,510.58,169.28,169.17,15.60273552]
[1746802391752,510.58,169.28,169.2,5.9097]
[1746802392150,510.58,169.28,169.16,51.42]
[1746802392355,5.9082,169.25,169.16,51.42]
[1746802392553,510.58,169.28,169.16,51.42]
[1746802392957,5.9079,169.26,169.22,5.9089]
[1746802393157,510.58,169.28,169.22,5.9089]
[1746802393454,5.9079,169.26,169.22,5.9089]
[1746802394057,5.9079,169.26,169.23,5.9087]
[1746802394256,510.58,169.28,169.17,15.60273552]
[1746802394558,52.0,169.29,169.27,5.9073]
[1746802394855,460.3,169.34,169.21,15.60273552]
[1746802395057,460.3,169.34,169.26,5.9075]
[1746802395248,460.3,169.34,169.21,15.60273552]
[1746802395457,460.3,169.34,169.16,51.42]
[1746802395655,409.0,169.34,169.26,5.9077]
[1746802395954,5.9061,169.31,169.19,15.60273552]
[1746802396155,5.9061,169.31,169.27,5.9072]
[1746802396355,5.9061,169.31,169.19,15.60273552]
[1746802396556,5.9061,169.31,169.27,5.9072]
[1746802397057,5.9061,169.31,169.19,15.60273552]
[1746802397557,5.9065,169.3,169.19,15.60273552]
[1746802397859,409.0,169.34,169.19,15.60273552]
[1746802398251,5.9072,169.28,169.25,5.908]
[1746802398457,409.0,169.34,169.17,51.18]
[1746802398651,357.0,169.33,169.17,51.18]
[1746802399353,5.9075,169.27,169.23,5.9088]
[1746802399658,357.0,169.33,169.17,51.18]
[1746802399857,5.9083,169.25,169.21,5.9093]
[1746802400154,357.0,169.32,169.17,51.18]
[1746802400352,5.908,169.26,169.22,5.9089]
[1746802400557,357.0,169.32,169.22,5.9089]
[1746802400756,357.0,169.32,169.17,51.18]
[1746802401346,357.0,169.31,169.16,67.60273552]
[1746802401551,357.0,169.31,169.16,52.0]
[1746802402457,5.9083,169.25,169.21,5.9093]
[1746802402757,357.0,169.31,169.16,52.0]
[1746802403958,5.909,169.23,169.16,52.0]
[1746802404151,357.0,169.31,169.16,52.0]
[1746802404353,357.0,169.3,169.16,52.0]
[1746802405455,408.0,169.3,169.16,52.0]
[1746802405655,5.9083,169.25,169.21,5.9093]
[1746802405858,357.0,169.3,169.18,15.60273552]
[1746802406253,5.9076,169.27,169.23,5.9085]
[1746802406561,357.0,169.3,169.18,15.60273552]
[1746802406758,357.0,169.3,169.23,5.9085]
[1746802407059,357.0,169.3,169.18,15.60273552]
[1746802409063,357.0,169.3,169.21,5.9092]
[1746802409256,357.0,169.3,169.16,52.0]
[1746802409451,357.0,169.3,169.15,1.8826]
[1746802409761,15.60273552,169.29,169.11,15.60273552]
[1746802409964,15.60273552,169.25,169.08,3.8081]
[1746802410261,5.9118,169.15,169.08,3.8081]
[1746802410456,969.58,169.24,169.18,1.0]
[1746802410653,357.0,169.23,169.18,1.0]
[1746802410961,5.9102,169.19,169.18,1.0]
[1746802411362,5.9101,169.2,169.18,1.0]
[1746802411566,357.0,169.23,169.18,1.0]
[1746802412466,5.9099,169.2,169.18,1.0]
[1746802412662,357.0,169.23,169.18,1.0]
[1746802412858,5.9094,169.22,169.18,1.0]
[1746802413064,357.0,169.23,169.18,1.0]
[1746802414065,5.9099,169.2,169.18,1.0]
[1746802414456,357.0,169.23,169.18,1.0]
[1746802415362,510.58,169.24,169.18,1.0]
[1746802416661,5.9094,169.22,169.18,6.9104]
[1746802416863,510.58,169.24,169.18,1.0]
[1746802417967,5.91,169.2,169.18,1.0]
[1746802418359,5.9099,169.2,169.18,1.0]
[1746802418563,510.58,169.24,169.18,1.0]
[1746802420563,5.9102,169.19,169.18,1.0]
[1746802423061,5.9121,169.14,169.1,5.9132]
[1746802423455,51.16,169.19,169.08,3.8081]
[1746802423665,5.9132,169.11,169.07,5.9141]
[1746802423966,5.9132,169.11,169.03,510.58]
[1746802424167,357.0,169.18,169.02,21.53203552]
[1746802424362,357.0,169.17,169.02,21.53203552]
[1746802425563,357.0,169.17,169.02,83.53203552]
[1746802425760,5.9136,169.1,169.06,5.9147]
[1746802425963,357.0,169.17,169.02,21.53203552]
[1746802426366,5.9127,169.12,169.02,21.53203552]
[1746802427063,11.8273,169.1,169.01,0.0001]
[1746802427262,15.6456206,169.05,168.86,15.6456206]
[1746802427466,407.4,169.04,168.86,15.6456206]
[1746802427669,407.4,169.04,168.86,16.67569401]
[1746802427866,407.4,169.04,168.86,1.03007341]
[1746802428660,5.9176,168.98,168.91,5.9199]
[1746802428865,101.56,169.03,168.91,5.9199]
[1746802429265,51.18,169.03,168.87,63.03004292]
[1746802430167,5.9161,169.02,168.94,5.9186]
[1746802430367,357.0,169.04,168.87,63.03004292]
[1746802430567,116.2856206,169.05,168.87,63.03004292]
[1746802430763,5.9158,169.03,168.95,5.9182]
[1746802431269,65.9856206,169.05,168.87,63.03004292]
[1746802431772,15.6456206,169.01,168.87,1.03004292]
[1746802432271,15.6456206,168.97,168.85,50.34]
[1746802432567,100.62,168.96,168.85,50.34]
[1746802432759,100.62,168.96,168.83,4.0029]
[1746802432965,5.919,168.94,168.89,5.9204]
[1746802433468,5.919,168.94,168.9,5.9201]
[1746802433769,5.9193,168.93,168.83,4.0029]
[1746802434169,50.26,168.96,168.83,4.0029]
[1746802434869,5.9202,168.91,168.83,4.0029]
[1746802435264,50.26,168.96,168.83,4.0029]
[1746802435465,5.9203,168.91,168.83,4.0029]
[1746802435666,50.26,168.96,168.83,4.0029]
[1746802435865,50.26,168.96,168.87,5.9213]
[1746802436470,15.6456206,168.97,168.83,4.0029]
[1746802436667,5.9191,168.94,168.83,4.0029]
[1746802436868,5.9191,168.94,168.89,5.9204]
[1746802437167,100.54,168.96,168.83,4.0029]
[1746802437666,5.9188,168.95,168.83,4.0029]
[1746802437868,100.54,168.96,168.83,4.0029]
[1746802439268,511.08,168.99,168.83,4.0029]
[1746802439570,100.48,168.98,168.83,4.0029]
[1746802439865,5.9185,168.96,168.87,5.9212]
[1746802440070,5.9185,168.96,168.83,4.0029]
[1746802440271,100.48,168.98,168.84,15.6456206]
[1746802440468,5.9183,168.96,168.85,50.08]
[1746802440767,100.48,168.98,168.85,50.08]
[1746802441373,50.36,168.98,168.86,62.0]
[1746802441773,5.9183,168.96,168.92,5.9194]
[1746802441973,50.36,168.98,168.86,62.0]
[1746802442182,50.36,168.98,168.88,5.9208]
[1746802442681,5.9202,168.91,168.85,50.08]
[1746802442869,50.36,168.98,168.85,50.08]
[1746802443278,511.08,168.99,168.85,50.08]
[1746802443476,611.46,168.99,168.85,50.08]
[1746802444480,611.46,168.99,168.89,5.9206]
[1746802445078,611.46,168.99,168.88,5.9209]
[1746802445280,357.0,168.98,168.85,50.08]
[1746802445580,357.0,168.98,168.88,5.9207]
[1746802445781,372.6456206,168.98,168.85,50.08]
[1746802446084,5.9181,168.97,168.92,5.9194]
[1746802446479,511.08,168.99,168.85,50.08]
[1746802446686,511.08,168.99,168.87,50.38]
[1746802448179,5.9199,168.92,168.84,1.03022588]
[1746802448378,511.08,168.99,168.84,1.03022588]
[1746802448778,511.08,168.99,168.88,5.9209]
[1746802448973,15.6456206,168.97,168.88,5.9209]
[1746802449173,357.0,168.98,168.87,5.9213]
[1746802449482,357.0,168.98,168.83,2.0138]
[1746802449783,5.9205,168.9,168.86,5.9215]
[1746802450283,50.38,168.94,168.88,5.9207]
[1746802450585,50.38,168.96,168.83,2.0138]
[1746802450784,5.9194,168.93,168.89,5.9204]
[1746802450985,50.38,168.96,168.83,2.0138]
[1746802451177,357.0,168.98,168.83,2.0138]
[1746802451679,5.9183,168.96,168.84,1.03030213]
[1746802451878,357.0,168.98,168.84,1.03030213]
[1746802452082,561.46,168.99,168.84,1.03030213]
[1746802452384,561.46,168.99,168.85,62.0]
[1746802452682,5.9188,168.95,168.92,5.9196]
[1746802453282,5.9188,168.95,168.91,5.9198]
[1746802453686,5.9194,168.93,168.85,62.0]
[1746802453881,561.46,168.99,168.89,5.9206]
[1746802454275,5.9199,168.92,168.88,5.9208]
[1746802454587,561.46,168.99,168.83,2.0138]
[1746802454777,5.92,168.91,168.83,2.0138]
[1746802455284,357.0,168.98,168.83,2.0138]
[1746802455676,357.0,168.98,168.88,5.9208]
[1746802455880,357.0,168.98,168.84,49.66]
[1746802456085,357.0,168.98,168.88,5.9208]
[1746802456282,357.0,168.98,168.83,2.0138]
[1746802456675,357.0,168.98,168.86,5.9217]
[1746802456877,5.9205,168.9,168.86,5.9217]
[1746802457091,357.0,168.98,168.83,2.0138]
[1746802457387,5.9203,168.9,168.83,2.0138]
[1746802457789,5.9203,168.9,168.86,5.9215]
[1746802457991,5.9212,168.88,168.82,50.38]
[1746802458189,5.9212,168.88,168.79,65.2456206]
[1746802458390,5.9212,168.88,168.78,3.0228]
[1746802458590,5.9207,168.89,168.78,3.0228]
[1746802458792,50.38,168.92,168.84,5.9223]
[1746802459089,50.38,168.92,168.78,3.0228]
[1746802459290,50.38,168.92,168.8,5.9235]
[1746802459682,5.922,168.86,168.78,1.0]
[1746802459886,50.38,168.92,168.78,1.0]
[1746802460089,50.38,168.92,168.8,5.9237]
[1746802460090,5.9222,168.85,168.8,5.9237]
[1746802460288,50.38,168.92,168.78,1.0]
[1746802460488,357.0,168.94,168.78,1.0]
[1746802460689,5.92,168.91,168.78,1.0]
[1746802460992,99.08,168.93,168.82,5.9229]
[1746802461194,99.08,168.93,168.78,1.0]
[1746802461394,5.9206,168.9,168.78,1.0]
[1746802462096,5.9206,168.9,168.84,5.9222]
[1746802462296,99.08,168.93,168.78,63.0]
[1746802462794,5.9203,168.91,168.78,63.0]
[1746802463094,99.02,168.93,168.78,63.0]
[1746802463295,99.02,168.93,168.78,1.0]
[1746802463796,15.6456206,168.92,168.78,1.0]
[1746802463997,357.0,168.91,168.78,1.0]
[1746802464293,357.0,168.9,168.78,1.0]
[1746802464495,511.66,168.89,168.78,1.0]
[1746802464795,15.6456206,168.88,168.78,1.0]
[1746802465397,511.66,168.89,168.82,5.923]
[1746802465598,511.66,168.89,168.78,1.0]
[1746802466499,5.9222,168.85,168.78,1.0]
[1746802466800,49.54,168.86,168.78,1.0]
[1746802467293,98.9,168.86,168.78,1.0]
[1746802467700,5.9235,168.81,168.78,1.0]
[1746802468400,98.9,168.86,168.78,1.0]
[1746802468699,98.9,168.86,168.78,6.9245]
[1746802469793,98.9,168.86,168.78,1.0]
[1746802470400,357.0,168.85,168.78,1.0]
[1746802470905,5.9242,168.79,168.78,1.0]
[1746802471200,357.0,168.85,168.78,1.0]
[1746802471904,5.9233,168.82,168.78,6.9244]
[1746802472099,357.0,168.85,168.78,1.0]
[1746802472398,5.9236,168.81,168.78,6.9243]
[1746802472598,5.9236,168.81,168.78,1.0]
[1746802472804,357.0,168.85,168.78,1.0]
[1746802473503,5.9241,168.8,168.78,1.0]
[1746802473804,357.0,168.85,168.78,1.0]
[1746802474309,372.6456206,168.85,168.78,1.0]
[1746802474607,5.9242,168.79,168.78,1.0]
[1746802474904,55.4842,168.79,168.78,1.0]
[1746802475601,49.56,168.79,168.78,1.0]
[1746802475805,49.56,168.84,168.78,1.0]
[1746802476301,5.9236,168.81,168.78,1.0]
[1746802476507,49.56,168.84,168.78,1.0]
[1746802479312,5.9235,168.81,168.78,6.9244]
[1746802479510,49.56,168.84,168.78,1.0]
[1746802480011,5.9237,168.81,168.78,1.0]
[1746802480207,15.6456206,168.9,168.78,1.0]
[1746802480412,5.9223,168.85,168.81,5.9235]
[1746802480611,5.9223,168.85,168.78,1.0]
[1746802480813,511.66,168.89,168.78,1.0]
[1746802481009,357.0,168.97,168.79,49.02]
[1746802481310,98.56,168.96,168.82,15.6456206]
[1746802481510,98.56,168.96,168.83,3.9977]
[1746802482314,98.56,168.96,168.83,1.9696]
[1746802482909,98.56,168.96,168.81,49.56]
[1746802483500,357.0,168.97,168.81,49.56]
[1746802483711,98.5,168.96,168.81,49.56]
[1746802484114,98.5,168.96,168.81,111.56]
[1746802484315,49.56,168.95,168.82,15.6456206]
[1746802484807,5.9195,168.93,168.89,5.9206]
[1746802485014,49.56,168.95,168.82,15.6456206]
[1746802485610,5.9197,168.92,168.82,15.6456206]
[1746802486015,48.9,168.97,168.82,15.6456206]
[1746802486314,511.9,168.98,168.86,15.6456206]
[1746802486611,49.56,169.0,168.87,54.7686]
[1746802486818,49.56,169.0,168.9,15.6456206]
[1746802487112,5.9155,169.04,168.94,15.6456206]
[1746802487312,511.78,169.06,168.95,5.9086]
[1746802487515,511.78,169.06,168.95,3.9024]
[1746802487710,511.78,169.06,168.95,1.932]
[1746802487907,511.78,169.06,168.89,3.9766]
[1746802488108,511.78,169.06,168.93,5.9192]
[1746802488109,5.918,168.97,168.93,5.9192]
[1746802488306,48.8,169.02,168.89,54.798]
[1746802488714,49.54,169.01,168.91,5.9199]
[1746802489116,49.54,169.01,168.89,54.798]
[1746802489317,5.9185,168.96,168.89,54.798]
[1746802489716,49.54,169.01,168.89,54.798]
[1746802489918,5.918,168.97,168.93,5.9189]
[1746802490113,49.54,169.01,168.89,54.798]
[1746802490314,5.918,168.97,168.93,5.919]
[1746802490615,49.54,169.01,168.89,54.798]
[1746802490913,5.9177,168.98,168.89,54.798]
[1746802491209,49.54,169.01,168.89,54.798]
[1746802491416,49.54,169.01,168.93,5.9189]
[1746802492011,5.9179,168.98,168.93,5.9189]
[1746802492213,5.9179,168.98,168.94,5.9189]
[1746802492609,5.9202,168.91,168.77,97.4]
[1746802492814,97.4,168.94,168.81,3.7911]
[1746802493116,5.9197,168.92,168.81,3.7911]
[1746802493318,97.4,168.94,168.81,29.20785535]
[1746802494514,5.9203,168.9,168.86,5.9214]
[1746802494818,5.9203,168.9,168.81,29.20785535]
[1746802495021,5.9201,168.91,168.81,29.20785535]
[1746802495214,97.4,168.94,168.81,29.20785535]
[1746802495414,5.9199,168.92,168.81,29.20785535]
[1746802495614,5.9199,168.92,168.82,62.0]
[1746802496021,5.9199,168.92,168.88,5.921]
[1746802496220,5.9193,168.93,168.82,62.0]
[1746802496415,97.4,168.94,168.82,62.0]
[1746802497323,5.9201,168.91,168.87,5.9212]
[1746802497511,5.9201,168.91,168.82,62.0]
[1746802498218,5.9201,168.91,168.81,29.20785535]
[1746802498422,5.9197,168.92,168.88,5.9208]
[1746802498723,48.72,168.98,168.84,48.72]
[1746802498919,48.54,168.97,168.84,48.72]
[1746802499119,5.9205,168.9,168.84,48.72]
[1746802499317,48.54,168.97,168.84,48.72]
[1746802499820,48.54,168.97,168.87,5.9214]
[1746802500019,48.54,168.97,168.84,48.72]
[1746802500922,5.9205,168.9,168.84,48.72]
[1746802501122,48.54,168.97,168.84,48.72]
[1746802501719,48.54,168.97,168.81,29.20785535]
[1746802502124,5.9208,168.89,168.84,5.9223]
[1746802502320,5.9208,168.89,168.81,29.20785535]
[1746802502525,48.54,168.97,168.81,29.20785535]
[1746802502921,48.54,168.97,168.81,77.64785535]
[1746802503424,48.54,168.97,168.81,3.7911]
[1746802503820,48.54,168.97,168.87,5.9212]
[1746802504021,48.54,168.97,168.81,3.7911]
[1746802504329,48.72,168.97,168.81,29.20785535]
[1746802504726,48.72,168.97,168.82,62.0]
[1746802505126,48.72,168.97,168.85,25.41675535]
[1746802505325,48.72,168.97,168.86,98.9761]
[1746802505529,5.9192,168.94,168.9,5.9201]
[1746802505824,48.72,168.97,168.86,98.9761]
[1746802506226,5.9183,168.96,168.93,5.9191]
[1746802506420,357.0,169.0,168.86,98.9761]
[1746802506625,48.36,169.01,168.86,98.9761]
[1746802506825,5.9176,168.98,168.94,5.9186]
[1746802507030,48.72,169.02,168.89,25.41675535]
[1746802507236,48.72,169.02,168.9,3.8553]
[1746802507728,48.72,169.02,168.85,511.58]
[1746802507932,5.9191,168.94,168.9,5.9203]
[1746802508131,48.72,169.02,168.86,1.9193]
[1746802508333,11.8332,169.01,168.86,1.9193]
[1746802508533,5.9202,168.91,168.87,5.9213]
[1746802508733,5.9202,168.91,168.86,1.9193]
[1746802508933,48.3,168.98,168.86,1.9193]
[1746802509136,5.9196,168.92,168.87,5.9211]
[1746802509337,48.3,168.98,168.86,1.9193]
[1746802509535,5.9195,168.93,168.88,5.9207]
[1746802509733,5.9195,168.93,168.86,1.9193]
[1746802509935,48.3,168.98,168.86,1.9193]
[1746802510437,5.9188,168.95,168.91,5.9198]
[1746802510738,48.3,168.98,168.86,1.9193]
[1746802511237,48.3,168.98,168.86,63.9193]
[1746802511437,5.9174,168.99,168.95,5.9185]
[1746802511639,96.96,169.02,168.9,48.24]
[1746802511831,96.96,169.02,168.91,3.7647]
[1746802512432,5.9191,168.94,168.91,3.7647]
[1746802512733,96.96,169.02,168.91,3.7647]
[1746802512938,5.9182,168.96,168.91,3.7647]
[1746802513139,96.96,169.02,168.91,3.7647]
[1746802513534,5.9188,168.95,168.91,3.7647]
[1746802514234,5.9182,168.97,168.91,3.7647]
[1746802514432,96.96,169.02,168.91,3.7647]
[1746802515033,5.9189,168.95,168.91,3.7647]
[1746802515336,96.96,169.02,168.91,3.7647]
[1746802515738,96.96,169.02,168.93,5.9192]
[1746802516037,48.72,169.02,168.91,3.7647]
[1746802516237,48.72,169.02,168.91,52.4647]
[1746802516639,5.9183,168.96,168.91,52.4647]
[1746802516843,48.72,169.02,168.91,52.4647]
[1746802518537,48.72,169.02,168.91,58.3846]
[1746802519337,48.72,169.02,168.91,52.4647]
[1746802520533,15.63754037,168.99,168.82,1.02998195]
[1746802520735,5.9217,168.87,168.82,4.87898195]
[1746802520934,48.0,168.98,168.82,4.87898195]
[1746802520935,48.0,168.94,168.82,3.849]
[1746802521534,15.63754037,168.91,168.79,1.03062252]
[1746802521740,5.9241,168.8,168.76,1.9306]
[1746802521946,48.0,168.86,168.76,1.9306]
[1746802522332,5.9242,168.79,168.76,1.9306]
[1746802522643,48.0,168.86,168.76,1.9306]
[1746802522838,5.9237,168.81,168.76,1.9306]
[1746802523142,48.0,168.86,168.76,1.9306]
[1746802523939,5.9242,168.79,168.76,1.9306]
[1746802524145,5.9242,168.79,168.75,1.0]
[1746802524335,48.0,168.86,168.75,1.0]
[1746802524535,357.0,168.89,168.75,1.0]
[1746802524736,48.0,168.88,168.75,1.0]
[1746802524939,48.0,168.88,168.79,5.9241]
[1746802525141,48.0,168.88,168.76,47.9]
[1746802525442,48.0,168.93,168.78,16.63754037]
[1746802525743,48.0,168.93,168.78,1.0]
[1746802526241,15.63754037,168.88,168.78,1.0]
[1746802526439,95.88,168.87,168.78,1.0]
[1746802528848,5.9232,168.82,168.78,1.0]
[1746802529039,357.0,168.92,168.78,48.82]
[1746802529443,5.9225,168.84,168.78,48.82]
[1746802529639,357.0,168.92,168.78,1.0]
[1746802529848,382.46078618,168.92,168.78,1.0]
[1746802530647,357.0,168.92,168.78,1.0]
[1746802530945,357.0,168.92,168.79,47.78]
[1746802531738,357.0,168.92,168.78,1.0]
[1746802532344,382.46078618,168.91,168.78,1.0]
[1746802532545,95.78,168.9,168.78,1.0]
[1746802532847,5.9235,168.81,168.78,1.0]
[1746802533146,95.78,168.9,168.78,1.0]
[1746802533847,5.9223,168.85,168.81,5.9233]
[1746802534053,95.78,168.9,168.78,1.0]
[1746802534550,5.9224,168.85,168.81,5.9234]
[1746802534948,95.78,168.9,168.78,1.0]
[1746802535145,95.78,168.9,168.79,5.9239]
[1746802535346,95.78,168.9,168.78,2.0]
[1746802535748,95.78,168.9,168.79,5.924]
[1746802535945,95.78,168.9,168.78,2.0]
[1746802536643,5.9231,168.83,168.8,5.9237]
[1746802536845,5.9231,168.83,168.78,2.0]
[1746802537345,95.78,168.9,168.78,2.0]
[1746802537541,48.02,168.9,168.78,2.0]
[1746802537746,48.02,168.9,168.79,97.5565]
[1746802538550,5.9218,168.86,168.79,97.5565]
[1746802538847,48.02,168.9,168.79,97.5565]
[1746802539047,357.0,168.91,168.79,97.5565]
[1746802539242,48.02,168.95,168.79,97.5565]
[1746802539848,357.0,168.97,168.82,25.46078618]
[1746802540153,357.0,168.97,168.86,25.46078618]
[1746802540449,17.7504,169.01,168.87,97.4838]
[1746802540845,5.9199,168.92,168.88,5.9209]
[1746802541451,48.02,169.02,168.87,97.4838]
[1746802541847,48.02,169.02,168.93,5.9192]
[1746802542145,48.02,169.02,168.87,609.2438]
[1746802542551,59.8527,169.02,168.88,5.9207]
[1746802542851,59.8527,169.02,168.87,609.2438]
[1746802543051,59.8527,169.02,168.88,5.921]
[1746802543350,11.8331,169.01,168.88,5.921]
[1746802543552,5.9201,168.91,168.88,5.921]
[1746802544253,11.8331,169.01,168.89,5.9206]
[1746802544649,11.8331,169.01,168.87,561.6638]
[1746802544948,5.9199,168.92,168.88,5.921]
[1746802545250,11.8331,169.01,168.88,5.921]
[1746802545642,48.02,169.02,168.87,561.6638]
[1746802545848,357.0,169.01,168.87,48.02]
[1746802546044,11.836,168.97,168.85,47.5]
[1746802546249,47.44,168.96,168.85,47.5]
[1746802546451,95.44,168.96,168.85,47.5]
[1746802546752,5.9206,168.9,168.86,5.9214]
[1746802546944,404.42,169.01,168.85,47.5]
[1746802547147,5.9192,168.94,168.9,5.9203]
[1746802547346,357.0,169.01,168.88,48.0]
[1746802547547,357.0,169.01,168.89,1.9857]
[1746802547750,5.9185,168.96,168.92,5.9194]
[1746802547953,357.0,169.01,168.89,1.9857]
[1746802548155,5.9172,168.99,168.96,5.9182]
[1746802548455,571.5892,169.07,168.91,72.84078618]
[1746802548651,5.9178,168.98,168.94,5.9187]
[1746802548853,571.5892,169.07,168.92,1.8812]
[1746802549051,47.36,169.06,168.92,1.8812]
[1746802549452,11.8306,169.05,168.92,1.8812]
[1746802549647,47.36,169.06,168.92,1.8812]
[1746802550051,11.831,169.04,168.92,1.8812]
[1746802550459,11.831,169.04,168.9,55.1531]
[1746802550654,11.831,169.04,168.9,49.2329]
[1746802550853,357.0,169.03,168.9,1.8729]
[1746802551054,25.46078618,169.02,168.89,1.9857]
[1746802551255,47.32,169.01,168.89,1.9857]
[1746802551457,47.32,169.0,168.89,1.9857]
[1746802552156,47.32,169.0,168.89,7.9064]